bitfinex/quotes_SOLUSD_20220211
["timestamp","ask_amount","ask_price","bid_price","bid_amount"]
[1644564373177,6.09366333,105.36,105.26,2.38366791]
[1644564373376,6.09366333,105.36,105.26,2.63366791]
[1644564373577,39.47876355,105.35,105.26,2.63366791]
[1644564373776,39.47876355,105.35,105.26,27.25366791]
[1644564373980,39.47876355,105.35,105.27,2.38366791]
[1644564374878,53.73216355,105.35,105.29,35.86239401]
[1644564375278,14.2534,105.35,105.29,35.86239401]
[1644564378810,15.60006333,105.35,105.29,35.86239401]
[1644564379311,14.2534,105.35,105.29,35.86239401]
[1644564379510,15.60006333,105.35,105.29,35.86239401]
[1644564380413,15.60006333,105.35,105.28,14.2527]
[1644564380814,1.34666333,105.34,105.28,14.2527]
[1644564382014,12.51019035,105.33,105.28,14.2527]
[1644564383116,12.51019035,105.33,105.27,45.94085025]
[1644564383314,4.748,105.32,105.27,45.94085025]
[1644564385719,4.748,105.32,105.27,60.19535025]
[1644564387121,12.51019035,105.33,105.27,60.19535025]
[1644564387622,26.76579035,105.33,105.26,61.952]
[1644564387823,4.748,105.32,105.22,47.5245]
[1644564388022,30.48216333,105.32,105.23,23.9562]
[1644564388521,30.48216333,105.32,105.24,42.79996919]
[1644564388922,14.2585,105.31,105.24,57.05836919]
[1644564390323,35.87654512,105.29,105.24,42.79996919]
[1644564390525,35.87654512,105.29,105.23,38.216]
[1644564391624,35.87654512,105.29,105.23,83.54559679]
[1644564392229,14.2594,105.3,105.23,83.54559679]
[1644564393228,62.55010772,105.3,105.23,83.54559679]
[1644564394530,19.007,105.31,105.23,83.54559679]
[1644564394730,25.73416333,105.32,105.23,85.9292647]
[1644564394731,30.48316333,105.32,105.23,85.9292647]
[1644564394929,24.3875,105.32,105.23,85.9292647]
[1644564395629,60.70794593,105.32,105.23,85.9292647]
[1644564395832,74.96464593,105.32,105.23,85.9292647]
[1644564396031,76.31130926,105.32,105.23,85.9292647]
[1644564397254,15.60336333,105.32,105.23,86.1792647]
[1644564397430,14.2567,105.32,105.23,86.1792647]
[1644564398632,14.2567,105.32,105.23,100.0792647]
[1644564398831,14.2567,105.32,105.23,106.0792647]
[1644564399232,14.2567,105.32,105.23,100.0792647]
[1644564399833,15.60336333,105.32,105.23,100.0792647]
[1644564400033,14.2567,105.32,105.23,100.0792647]
[1644564400235,15.60336333,105.32,105.23,100.0792647]
[1644564401237,15.60336333,105.32,105.23,106.0792647]
[1644564401436,15.60336333,105.32,105.23,100.0792647]
[1644564403338,20.35236333,105.32,105.23,100.0792647]
[1644564404538,15.60336333,105.32,105.23,100.0792647]
[1644564405060,15.60336333,105.32,105.23,99.8292647]
[1644564405260,1.34666333,105.31,105.23,83.54559679]
[1644564405460,14.2597,105.3,105.23,83.56959679]
[1644564405661,13.00833987,105.29,105.23,83.56959679]
[1644564405862,13.00833987,105.29,105.23,83.54559679]
[1644564406062,13.00833987,105.29,105.23,38.216]
[1644564406261,13.00833987,105.29,105.22,0.024]
[1644564406466,4.75,105.28,105.22,0.024]
[1644564406662,14.2631,105.27,105.22,0.024]
[1644564407061,4.75,105.28,105.21,46.2766]
[1644564407263,1.34666333,105.29,105.22,14.286]
[1644564407462,23.99746333,105.3,105.23,0.024]
[1644564407662,15.60396333,105.31,105.22,0.024]
[1644564408061,46.95457378,105.32,105.23,47.5218]
[1644564408262,46.95457378,105.32,105.23,47.7958]
[1644564408461,1.34666333,105.32,105.23,47.7958]
[1644564408662,1.34666333,105.32,105.24,24.966]
[1644564408865,6.09566333,105.32,105.24,24.966]
[1644564409167,15.60446333,105.31,105.25,14.2579]
[1644564409363,59.0042366,105.31,105.25,14.2579]
[1644564409763,1.34666333,105.3,105.25,14.2579]
[1644564409962,6.09566333,105.3,105.26,37.2753752]
[1644564410164,1.34666333,105.3,105.26,37.2753752]
[1644564410564,15.60446333,105.31,105.26,37.2753752]
[1644564410764,15.60446333,105.31,105.26,51.5320752]
[1644564411467,1.34666333,105.31,105.26,51.5320752]
[1644564411966,15.60266333,105.32,105.26,51.5320752]
[1644564413969,1.34666333,105.32,105.26,51.5320752]
[1644564414172,1.34666333,105.32,105.26,59.4380752]
[1644564414370,1.34666333,105.33,105.26,59.4380752]
[1644564414569,1.34666333,105.33,105.28,14.2517]
[1644564414770,1.34666333,105.34,105.28,14.2517]
[1644564418674,1.34666333,105.35,105.28,14.2517]
[1644564418874,1.34666333,105.35,105.28,91.7817]
[1644564419074,1.34666333,105.36,105.29,2.38366791]
[1644564419275,1.34666333,105.37,105.3,13.9]
[1644564419474,1.34666333,105.37,105.32,14.2468]
[1644564419674,1.34666333,105.37,105.33,47.83730978]
[1644564420374,1.34666333,105.38,105.33,47.83730978]
[1644564420779,1.34666333,105.38,105.33,62.08380978]
[1644564423280,1.34666333,105.38,105.33,14.2465]
[1644564423476,1.34666333,105.37,105.33,14.2465]
[1644564423977,1.34666333,105.38,105.33,14.2465]
[1644564424882,15.59496333,105.38,105.3,23.5949]
[1644564425082,15.59496333,105.38,105.28,24.9203]
[1644564425083,4.746,105.37,105.28,24.9203]
[1644564425279,1.34666333,105.36,105.28,24.9203]
[1644564425480,1.34666333,105.35,105.28,24.9203]
[1644564425882,1.34666333,105.36,105.29,56.47291019]
[1644564426080,1.34666333,105.36,105.29,58.8565781]
[1644564426281,1.34666333,105.37,105.29,59.1065781]
[1644564426481,1.34666333,105.38,105.3,16.28366791]
[1644564426682,1.34666333,105.38,105.3,98.38796791]
[1644564426883,1.34666333,105.38,105.31,2.38366791]
[1644564427083,1.34666333,105.38,105.31,16.28366791]
[1644564427284,1.34666333,105.38,105.33,34.30033057]
[1644564427486,1.34666333,105.38,105.34,14.2452]
[1644564427684,1.34666333,105.39,105.34,14.2452]
[1644564428286,1.34666333,105.39,105.33,34.30033057]
[1644564428485,14.2496,105.37,105.3,23.9943]
[1644564428686,15.59626333,105.37,105.3,23.9943]
[1644564428886,15.59626333,105.37,105.29,23.37]
[1644564429086,6.09266333,105.36,105.29,23.37]
[1644564429285,6.09266333,105.37,105.29,23.37]
[1644564429486,1.34666333,105.37,105.3,44.98385882]
[1644564430787,14.2513,105.36,105.3,59.23455882]
[1644564430985,18.9973,105.36,105.3,59.23455882]
[1644564431386,20.34396333,105.36,105.3,44.98385882]
[1644564432888,15.59796333,105.36,105.3,44.98385882]
[1644564433889,15.09235104,105.36,105.3,59.23475882]
[1644564434791,13.74568771,105.36,105.3,59.23475882]
[1644564434992,15.09235104,105.36,105.3,59.23475882]
[1644564435198,13.74568771,105.36,105.3,59.23475882]
[1644564435692,15.09235104,105.36,105.3,59.23475882]
[1644564435892,15.09235104,105.36,105.3,44.98385882]
[1644564436296,18.9986,105.35,105.3,44.98385882]
[1644564436494,14.2526,105.35,105.3,44.98385882]
[1644564436792,14.2526,105.35,105.29,37.6222]
[1644564436993,20.34626333,105.35,105.29,37.6222]
[1644564437798,20.34626333,105.35,105.29,75.82650735]
[1644564439299,13.22112877,105.34,105.29,75.82650735]
[1644564439699,13.22112877,105.34,105.29,37.6222]
[1644564439900,14.5677921,105.34,105.29,37.6222]
[1644564440302,1.34666333,105.34,105.29,37.6222]
[1644564440903,20.34626333,105.35,105.29,37.6222]
[1644564441110,15.59926333,105.35,105.29,37.6222]
[1644564441501,15.59926333,105.35,105.3,47.38388794]
[1644564441702,15.59926333,105.35,105.3,61.63468794]
[1644564442305,1.34666333,105.35,105.3,61.63468794]
[1644564442506,39.29386333,105.36,105.3,61.63468794]
[1644564442706,1.34666333,105.35,105.3,61.63468794]
[1644564444410,15.59836333,105.35,105.3,61.63468794]
[1644564444812,1.34666333,105.34,105.3,61.63468794]
[1644564446021,0.08251115,105.34,105.3,61.63468794]
[1644564446422,0.08251115,105.34,105.3,14.2508]
[1644564448124,0.08251115,105.34,105.29,37.6223]
[1644564452234,2.68954484,105.37,105.29,42.48516795]
[1644564452429,1.31370987,105.38,105.29,123.05916795]
[1644564452629,7.44413546,105.4,105.31,57.38]
[1644564452831,2.69713546,105.41,105.33,14.2418]
[1644564453029,2.69713546,105.41,105.33,95.6278]
[1644564453228,5.39365989,105.42,105.34,34.24785435]
[1644564453431,52.7196,105.46,105.35,47.4606]
[1644564453432,25.43086485,105.45,105.35,47.4606]
[1644564453629,5.39365989,105.45,105.36,4.743]
[1644564453828,2.69713546,105.45,105.36,26.1672]
[1644564454029,2.69713546,105.45,105.36,18.9812]
[1644564454229,5.38687668,105.45,105.36,18.9812]
[1644564454631,61.58518588,105.45,105.37,48.02940506]
[1644564454835,4.743,105.44,105.37,48.02940506]
[1644564455030,15.42216534,105.43,105.37,48.02940506]
[1644564456331,18.9846,105.44,105.37,48.02940506]
[1644564456533,2.69713546,105.45,105.37,48.02940506]
[1644564456732,50.67073546,105.46,105.37,48.02940506]
[1644564457332,43.71978392,105.45,105.37,48.02940506]
[1644564457632,62.70308392,105.45,105.37,62.27010506]
[1644564457834,65.08675183,105.45,105.35,4.743]
[1644564458033,81.68388729,105.45,105.32,13.9]
[1644564458234,5.38242242,105.44,105.31,50.1758]
[1644564458436,7.44113546,105.43,105.31,45.4328]
[1644564458638,9.82480337,105.43,105.32,4.745]
[1644564458837,14.2481,105.41,105.33,48.58123407]
[1644564459936,13.66029062,105.42,105.33,50.96490198]
[1644564460136,13.66029062,105.42,105.33,51.21490198]
[1644564460736,27.90449062,105.42,105.33,51.21490198]
[1644564462138,27.90449062,105.42,105.33,65.11490198]
[1644564463437,4.744,105.41,105.33,65.11490198]
[1644564463840,42.27047801,105.4,105.33,65.11490198]
[1644564464638,42.27047801,105.4,105.33,64.86490198]
[1644564466640,56.51757801,105.4,105.33,48.58123407]
[1644564467040,56.51757801,105.4,105.33,34.33593407]
[1644564468341,56.51757801,105.4,105.33,48.58213407]
[1644564469445,56.51757801,105.4,105.33,14.2462]
[1644564470043,56.51757801,105.4,105.32,14.2475]
[1644564470243,56.51757801,105.4,105.31,52.56146791]
[1644564470446,56.51757801,105.4,105.31,45.4328]
[1644564470447,4.745,105.39,105.31,45.4328]
[1644564470645,29.35989653,105.38,105.31,45.4328]
[1644564471046,4.746,105.37,105.32,37.75483062]
[1644564471247,29.35989653,105.38,105.32,37.75483062]
[1644564475350,29.35989653,105.38,105.3,18.9964]
[1644564475550,4.746,105.37,105.28,2.38366791]
[1644564475751,14.2535,105.35,105.27,21.02966791]
[1644564476352,14.2535,105.35,105.28,41.05807167]
[1644564476855,14.2535,105.35,105.28,57.69523958]
[1644564477653,14.2517,105.36,105.28,57.69523958]
[1644564477852,46.8196,105.37,105.28,57.69523958]
[1644564478051,46.8196,105.37,105.29,4.747]
[1644564478252,46.8196,105.37,105.3,14.2503]
[1644564478454,46.8196,105.37,105.3,16.63396791]
[1644564478653,46.8196,105.37,105.31,48.03410707]
[1644564478853,42.2884474,105.39,105.31,48.03410707]
[1644564479053,14.2503,105.37,105.31,48.03410707]
[1644564479552,29.34192714,105.37,105.31,48.03410707]
[1644564482959,29.34192714,105.37,105.29,14.2522]
[1644564483762,29.34192714,105.37,105.29,16.63586791]
[1644564483960,29.34192714,105.37,105.3,46.54816887]
[1644564485261,4.746,105.36,105.3,46.54816887]
[1644564485462,14.2531,105.35,105.28,0.024]
[1644564485662,4.747,105.34,105.28,0.024]
[1644564485960,16.324,105.34,105.28,0.024]
[1644564486161,11.577,105.34,105.25,0.024]
[1644564486361,41.18516143,105.33,105.25,38.78043928]
[1644564486562,41.18516143,105.33,105.26,0.024]
[1644564486764,19.0045,105.33,105.26,14.2805]
[1644564487762,19.0045,105.33,105.27,41.46169676]
[1644564487965,14.2565,105.33,105.27,55.71699676]
[1644564490664,26.96656718,105.33,105.27,55.71699676]
[1644564491368,14.2565,105.33,105.27,55.71699676]
[1644564491566,4.748,105.32,105.27,55.71699676]
[1644564491765,14.2565,105.33,105.27,58.10066467]
[1644564491966,14.2527,105.35,105.27,58.10066467]
[1644564492365,55.6442908,105.35,105.27,58.10066467]
[1644564492566,55.6442908,105.35,105.27,55.71699676]
[1644564493366,60.3912908,105.35,105.27,55.71699676]
[1644564495387,14.2527,105.35,105.27,55.71699676]
[1644564495687,14.2527,105.35,105.27,58.35066467]
[1644564500594,10.67504936,105.34,105.27,58.35066467]
[1644564500790,24.92814936,105.34,105.27,58.35066467]
[1644564501790,24.92814936,105.34,105.27,55.96699676]
[1644564502893,24.92814936,105.34,105.27,55.71699676]
[1644564504996,24.92814936,105.34,105.26,24.1043]
[1644564505197,4.748,105.33,105.26,0.024]
[1644564505498,14.2586,105.31,105.24,0.024]
[1644564505997,54.6849217,105.31,105.24,45.78347091]
[1644564506798,54.6849217,105.31,105.24,60.04287091]
[1644564506998,59.4339217,105.31,105.24,0.024]
[1644564507998,59.4339217,105.31,105.24,40.15223668]
[1644564510803,59.4339217,105.31,105.24,0.024]
[1644564511904,59.4339217,105.31,105.24,46.63896123]
[1644564515906,59.4339217,105.31,105.24,0.024]
[1644564522117,73.3339217,105.31,105.24,0.024]
[1644564522917,73.3339217,105.31,105.21,40.41934327]
[1644564522918,14.265,105.28,105.21,40.41934327]
[1644564523218,40.4263217,105.27,105.22,0.024]
[1644564523417,40.4263217,105.27,105.21,40.39534327]
[1644564524723,14.2649,105.26,105.21,40.39534327]
[1644564529647,14.2649,105.26,105.21,54.65864327]
[1644564531952,14.2612,105.27,105.21,54.65864327]
[1644564532153,52.2843,105.31,105.21,71.21631118]
[1644564532353,52.2843,105.31,105.22,24.5498]
[1644564532558,52.2843,105.31,105.24,14.2589]
[1644564532757,52.2843,105.31,105.24,14.2829]
[1644564532954,97.63422041,105.31,105.25,43.7680018]
[1644564533156,14.2587,105.29,105.25,43.7680018]
[1644564533955,14.2587,105.29,105.24,14.2829]
[1644564534459,14.2587,105.29,105.24,0.024]
[1644564534658,14.2587,105.29,105.22,24.5498]
[1644564534857,4.75,105.28,105.22,24.5498]
[1644564535057,26.29275413,105.27,105.22,24.5498]
[1644564535459,31.04275413,105.27,105.22,24.5498]
[1644564535656,26.29275413,105.27,105.22,24.5498]
[1644564536560,31.04275413,105.27,105.22,24.5498]
[1644564539564,31.04275413,105.27,105.22,0.024]
[1644564539761,31.04275413,105.27,105.2,23.5501]
[1644564540368,31.04275413,105.27,105.2,66.87799351]
[1644564544369,31.04275413,105.27,105.2,23.5501]
[1644564549899,31.04275413,105.27,105.21,35.60594856]
[1644564550299,31.04275413,105.27,105.2,23.5501]
[1644564551199,31.04275413,105.27,105.2,47.7162]
[1644564554497,55.47865413,105.27,105.2,47.7162]
[1644564555024,55.47865413,105.27,105.21,44.13305818]
[1644564556319,55.47865413,105.27,105.2,47.7162]
[1644564557819,55.47865413,105.27,105.21,44.69700074]
[1644564560128,50.72865413,105.27,105.21,44.69700074]
[1644564561319,55.47965413,105.27,105.21,44.69700074]
[1644564561621,55.47965413,105.27,105.2,47.7162]
[1644564562520,55.47965413,105.27,105.2,93.62671402]
[1644564566726,55.47965413,105.27,105.2,47.7162]
[1644564572335,1.35154994,105.26,105.2,47.7162]
[1644564572535,59.61592041,105.25,105.2,47.6922]
[1644564579569,4.751,105.24,105.19,0.024]
[1644564579770,14.2694,105.23,105.18,135.5835]
[1644564580069,4.752,105.22,105.17,0.024]
[1644564580270,4.752,105.22,105.16,25.04936424]
[1644564580471,12.03015413,105.22,105.16,23.7075]
[1644564580680,12.03015413,105.22,105.16,37.9776]
[1644564581776,14.2701,105.21,105.16,37.9776]
[1644564581975,45.34992041,105.2,105.16,37.9776]
[1644564582177,45.34992041,105.2,105.16,37.9536]
[1644564583779,59.62052041,105.2,105.16,37.9536]
[1644564585479,59.62052041,105.2,105.16,23.6835]
[1644564591389,59.62052041,105.2,105.15,23.8813]
[1644564593085,4.753,105.19,105.15,23.8813]
[1644564593285,14.2745,105.18,105.13,24.2407]
[1644564593485,14.2745,105.18,105.13,0.024]
[1644564593687,14.2745,105.18,105.11,27.7307]
[1644564593987,26.30465413,105.18,105.12,39.89560898]
[1644564594289,14.2745,105.18,105.12,39.89560898]
[1644564594485,14.2745,105.18,105.12,54.17040898]
[1644564595186,61.39790223,105.18,105.12,54.17040898]
[1644564595386,14.2745,105.18,105.12,54.17040898]
[1644564595587,4.753,105.2,105.12,54.17040898]
[1644564595785,4.753,105.22,105.14,14.2715]
[1644564595986,53.67204994,105.23,105.15,22.5614]
[1644564596186,53.67204994,105.23,105.15,22.5854]
[1644564596388,52.3205,105.23,105.15,22.5854]
[1644564596586,37.50054796,105.22,105.15,60.66600143]
[1644564597386,61.93954796,105.22,105.15,60.66600143]
[1644564597686,14.2699,105.21,105.16,14.2689]
[1644564599989,14.2699,105.21,105.17,46.71143213]
[1644564600186,14.2683,105.22,105.17,60.98013213]
[1644564600387,14.2683,105.22,105.17,61.00413213]
[1644564600587,14.2683,105.22,105.17,60.98013213]
[1644564600987,62.50242333,105.22,105.17,60.98013213]
[1644564602089,14.2683,105.22,105.17,60.98013213]
[1644564603191,52.24960175,105.22,105.17,60.98013213]
[1644564603994,14.2683,105.22,105.17,60.98013213]
[1644564605092,14.2683,105.22,105.17,66.98013213]
[1644564606994,14.2683,105.22,105.17,60.98013213]
[1644564607594,14.2669,105.23,105.17,60.98013213]
[1644564607793,14.2669,105.23,105.18,38.7896]
[1644564607996,14.2669,105.23,105.18,38.7656]
[1644564608194,14.2669,105.23,105.18,38.7896]
[1644564611296,14.2659,105.24,105.18,38.7896]
[1644564611997,14.2659,105.24,105.18,38.76167486]
[1644564614299,14.2659,105.24,105.18,44.76167486]
[1644564616824,14.2659,105.24,105.18,38.76167486]
[1644564617826,19.0179,105.24,105.18,38.76167486]
[1644564618226,20.36944994,105.24,105.18,24.49477486]
[1644564618425,20.36944994,105.24,105.17,0.024]
[1644564618626,14.2704,105.22,105.17,0.024]
[1644564618929,4.753,105.21,105.16,4.776]
[1644564619125,10.56361794,105.2,105.16,4.776]
[1644564619325,10.56361794,105.2,105.16,19.0459]
[1644564619926,19.023,105.21,105.16,19.0459]
[1644564620126,14.27,105.21,105.16,19.0459]
[1644564620930,62.56037123,105.21,105.16,19.0459]
[1644564621129,62.56037123,105.21,105.16,14.2939]
[1644564621629,14.27,105.21,105.16,14.2939]
[1644564622432,1.35154994,105.24,105.16,14.2939]
[1644564622631,1.35154994,105.24,105.17,24.9221]
[1644564622830,39.2451815,105.24,105.18,54.42929181]
[1644564623730,14.2672,105.23,105.18,54.42929181]
[1644564625936,1.35154994,105.25,105.18,54.42929181]
[1644564626135,1.35154994,105.25,105.19,24.4772]
[1644564626336,1.35154994,105.26,105.19,49.3792]
[1644564626639,1.35154994,105.27,105.21,14.2604]
[1644564626837,1.35154994,105.29,105.23,43.72404707]
[1644564627236,49.20613726,105.3,105.23,43.72404707]
[1644564627435,49.20613726,105.3,105.22,27.698]
[1644564627636,1.35154994,105.28,105.22,27.698]
[1644564628640,6.10154994,105.28,105.22,27.698]
[1644564628839,20.36324994,105.28,105.22,41.9597]
[1644564629841,19.0117,105.28,105.22,41.9597]
[1644564630042,14.2617,105.28,105.22,37.2097]
[1644564632042,14.22788451,105.28,105.22,37.2097]
[1644564633648,40.14734994,105.29,105.22,37.2097]
[1644564633847,1.35154994,105.29,105.22,37.4597]
[1644564634046,6.10154994,105.3,105.23,13.9]
[1644564634251,1.35154994,105.3,105.25,14.2566]
[1644564634550,1.35154994,105.31,105.25,14.2566]
[1644564634947,1.35154994,105.31,105.25,58.88696598]
[1644564635849,49.12714994,105.32,105.25,59.13696598]
[1644564636048,1.35154994,105.32,105.25,132.39063389]
[1644564636247,1.35154994,105.33,105.26,61.719]
[1644564636447,1.35154994,105.33,105.28,14.2498]
[1644564636647,23.6194,105.36,105.28,14.2498]
[1644564636648,1.35154994,105.35,105.29,39.74856205]
[1644564636853,1.35154994,105.35,105.3,13.9]
[1644564637047,1.35154994,105.36,105.3,13.9]
[1644564637648,1.35154994,105.36,105.29,70.03216205]
[1644564637850,1.35154994,105.36,105.29,62.39816205]
[1644564638048,6.09854994,105.35,105.28,4.748]
[1644564638449,1.35154994,105.34,105.28,4.748]
[1644564638650,1.35154994,105.34,105.27,37.0241]
[1644564639049,17.61560894,105.34,105.28,35.62226858]
[1644564639251,4.747,105.33,105.28,35.62226858]
[1644564640553,39.33294994,105.35,105.28,35.62226858]
[1644564641785,39.33294994,105.35,105.28,43.23426858]
[1644564642485,39.33294994,105.35,105.28,57.48696858]
[1644564643086,39.33294994,105.35,105.29,23.2286]
[1644564644687,37.9814,105.35,105.29,23.2286]
[1644564647092,42.7284,105.35,105.29,23.2286]
[1644564647499,23.7279,105.35,105.29,46.6879]
[1644564647691,1.35154994,105.36,105.29,46.6879]
[1644564647992,24.1397,105.37,105.29,51.4349]
[1644564648391,25.49124994,105.37,105.29,51.4349]
[1644564649694,24.2442,105.36,105.29,51.4349]
[1644564651596,24.2442,105.36,105.29,51.6849]
[1644564652499,15.60084994,105.38,105.29,51.6849]
[1644564652698,15.60084994,105.38,105.3,13.9]
[1644564652896,15.60084994,105.38,105.31,14.2481]
[1644564653097,64.20768311,105.38,105.32,68.87907979]
[1644564653295,1.35154994,105.37,105.32,68.87907979]
[1644564654597,15.60084994,105.38,105.32,68.87907979]
[1644564654999,1.35154994,105.37,105.32,68.87907979]
[1644564656497,1.35154994,105.36,105.32,68.87907979]
[1644564656901,1.35154994,105.37,105.32,68.87907979]
[1644564659002,1.35154994,105.36,105.32,68.87907979]
[1644564663006,1.35154994,105.35,105.32,68.87907979]
[1644564663304,1.35154994,105.35,105.33,6.06439994]
[1644564663505,1.35154994,105.35,105.33,3.03219997]
[1644564663707,1.35154994,105.35,105.32,68.87907979]
[1644564664506,1.35154994,105.35,105.33,3.03219997]
[1644564664707,1.35154994,105.35,105.33,6.06439994]
[1644564669110,1.35154994,105.36,105.33,20.31139994]
[1644564669511,0.35154994,105.37,105.33,20.31139994]
[1644564669712,0.35154994,105.37,105.34,23.4834]
[1644564669916,5.39175176,105.4,105.34,23.4834]
[1644564670112,5.39175176,105.4,105.36,42.0114022]
[1644564670614,2.69713546,105.4,105.36,42.0114022]
[1644564670916,14.246,105.4,105.36,42.0114022]
[1644564671416,14.246,105.4,105.34,37.729]
[1644564672013,16.94313546,105.4,105.34,37.729]
[1644564672413,16.94313546,105.4,105.34,77.10446922]
[1644564674117,14.246,105.4,105.34,77.10446922]
[1644564676042,2.69713546,105.41,105.34,77.10446922]
[1644564676244,7.44213546,105.43,105.35,7.12766791]
[1644564676444,7.44213546,105.43,105.37,14.2413]
[1644564677145,21.68393546,105.43,105.38,48.27892174]
[1644564677544,18.9868,105.43,105.38,48.27892174]
[1644564678447,18.9868,105.43,105.36,38.2137]
[1644564678847,21.68393546,105.43,105.36,38.2137]
[1644564679247,16.93893546,105.43,105.36,38.2137]
[1644564679449,16.93893546,105.43,105.37,42.77753059]
[1644564680750,14.2418,105.43,105.37,42.77753059]
[1644564680949,16.93893546,105.43,105.37,42.77753059]
[1644564682371,16.93893546,105.43,105.37,57.01943059]
[1644564682955,45.21353546,105.44,105.37,57.01943059]
[1644564683156,37.7724,105.44,105.37,59.4030985]
[1644564683555,37.7724,105.44,105.38,22.8842]
[1644564683956,37.7724,105.44,105.38,37.1243]
[1644564684156,37.7724,105.44,105.38,36.6243]
[1644564685357,54.14783546,105.46,105.38,49.73896791]
[1644564685557,54.14783546,105.46,105.38,54.48196791]
[1644564685558,26.02833546,105.46,105.38,54.48196791]
[1644564685860,23.3312,105.46,105.38,54.48196791]
[1644564686258,23.3312,105.46,105.38,68.38196791]
[1644564686457,2.69713546,105.47,105.38,68.38196791]
[1644564686660,16.93173546,105.49,105.38,131.35196791]
[1644564686859,25.61583546,105.49,105.38,131.35196791]
[1644564687064,22.9187,105.49,105.38,131.35196791]
[1644564687259,22.9187,105.49,105.38,128.9683]
[1644564687459,22.9187,105.49,105.39,2.38366791]
[1644564687759,22.9187,105.49,105.42,14.2337]
[1644564687959,22.9187,105.49,105.42,37.1441]
[1644564688761,22.9187,105.49,105.42,22.9104]
[1644564688762,37.1531,105.49,105.42,22.9104]
[1644564688960,42.23390337,105.49,105.42,22.9104]
[1644564689158,7.43813546,105.48,105.42,22.9104]
[1644564689359,18.42551352,105.47,105.42,22.9104]
[1644564689560,4.741,105.46,105.42,22.9104]
[1644564689760,21.36506791,105.47,105.42,22.9104]
[1644564690962,2.38366791,105.46,105.42,22.9104]
[1644564691160,49.49032653,105.44,105.42,22.9104]
[1644564691364,4.742,105.43,105.42,22.9104]
[1644564692763,18.9845,105.43,105.42,22.9104]
[1644564693667,1.63265166,105.42,105.4,4.742]
[1644564693866,15.87625166,105.42,105.4,4.742]
[1644564694768,36.37464801,105.42,105.4,4.742]
[1644564695166,34.74199635,105.42,105.4,4.742]
[1644564696773,14.2436,105.42,105.4,4.742]
[1644564698075,18.9866,105.42,105.4,4.742]
[1644564698577,9.18756333,105.41,105.4,4.742]
[1644564698775,9.18756333,105.41,105.36,71.07174665]
[1644564698976,31.70656333,105.41,105.36,23.7777]
[1644564700480,31.70656333,105.41,105.36,61.64014616]
[1644564701096,22.519,105.41,105.36,61.64014616]
[1644564702094,22.519,105.41,105.36,23.7777]
[1644564702294,41.5078,105.41,105.36,23.7777]
[1644564702495,36.7638,105.41,105.31,18.644]
[1644564702696,4.744,105.4,105.32,23.2358]
[1644564703096,37.40261127,105.39,105.33,48.54718768]
[1644564703296,37.40261127,105.39,105.34,23.2358]
[1644564703898,37.40261127,105.39,105.32,23.5084]
[1644564704097,23.9866,105.38,105.32,23.5084]
[1644564704296,28.7326,105.38,105.32,23.5084]
[1644564704697,28.7326,105.38,105.33,36.95731255]
[1644564705100,4.745,105.41,105.33,36.95731255]
[1644564705298,23.6854,105.4,105.34,24.3482]
[1644564705501,4.745,105.39,105.34,24.3482]
[1644564705900,12.17105567,105.38,105.3,77.2211]
[1644564706103,12.17105567,105.38,105.31,24.3482]
[1644564706303,12.17105567,105.38,105.3,29.7342]
[1644564706304,4.746,105.37,105.3,29.7342]
[1644564706500,4.746,105.37,105.3,24.9902]
[1644564706710,29.3007,105.37,105.3,24.9902]
[1644564706900,43.38375449,105.36,105.3,61.85816676]
[1644564707702,57.63545449,105.36,105.3,61.85816676]
[1644564708104,4.746,105.35,105.3,61.85816676]
[1644564709417,4.747,105.36,105.3,61.85816676]
[1644564710014,39.12571034,105.35,105.3,61.85816676]
[1644564710816,18.999,105.36,105.3,61.85816676]
[1644564711717,4.747,105.36,105.3,61.85816676]
[1644564711919,4.747,105.36,105.3,62.10816676]
[1644564712117,4.746,105.38,105.3,76.00816676]
[1644564712341,29.055,105.42,105.31,4.745]
[1644564712521,29.055,105.42,105.32,24.9753]
[1644564712919,62.61442336,105.41,105.33,45.90722116]
[1644564713118,4.745,105.4,105.34,24.9753]
[1644564713320,67.35842336,105.41,105.35,39.01912773]
[1644564713521,18.9901,105.41,105.35,39.01912773]
[1644564714323,4.744,105.41,105.35,39.01912773]